Workbook

Sheet CC vide
B2: COMPTE COURANT | F2: Taux créancier : | O2: 1.25 | Q2: 1.25 | R2: %
F3: Taux débiteur : | O3: 7 | Q3: 7 | R3: % | Y3: Nb de fautes
F4: Clôture au : | K4: 31 | O4: mars | S4: 2007 | Y4: par ligne
B5: Date | C5: Libellé | D5: Mouvement | F5: Solde D/C | G5: Solde | H5: D | I5: Val | O5: n | P5: arrondi | Q5: N | R5: Nombres
D6: Débit | E6: Crédit | F6: C en négatif | H6: C | I6: j | J6: . | K6: m | P6: solde | R6: Débit | S6: Crédit | W6: solde débiteur pour comm.
G7: =D7-E7 -> 0 | U7: août | V7: 8
A8: 0 | C8: Solde | F8: =IF(D8+E8<>0,F7+D8-E8,0) -> 0.00 | G8: =IF(D8+E8<>0,ABS(F8),0) -> 0.00 | H8: =IF(G8<>0,IF(F8>0,"D","C"),0) -> 0 | J8: =IF(I8>0,".","") ->  | L8: =IF(I8>0,IF(K8<>2,IF(I8=31,30,I8),IF($L$29=1,IF(I8=29,30,I8),IF(I8=28,30,I8))),$L$23) -> 30 | M8: =IF(K8=0,$M$23,K8) -> 3 | N8: =IF(D8+E8<>0,((M9-M8)*30)+(L9-L8),0) -> 0 | O8: =IF(N8<-200,N8+360,N8) -> 0 | P8: =ROUND(G8,0) -> 0 | Q8: =ROUND(P8*O8/100,0) -> 0 | R8: =IF(Q8<>0,IF(H8="D",Q8,0),0) -> 0 | S8: =IF(Q8<>0,IF(H8="C",Q8,0),0) -> 0 | U8: avril | V8: 4
A9: 1 | F9: =IF(D9+E9<>0,F8+D9-E9,0) -> 0.00 | G9: =IF(D9+E9<>0,ABS(F9),0) -> 0.00 | H9: =IF(G9<>0,IF(F9>0,"D","C"),0) -> 0 | J9: =IF(I9>0,".","") ->  | L9: =IF(I9>0,IF(K9<>2,IF(I9=31,30,I9),IF($L$29=1,IF(I9=29,30,I9),IF(I9=28,30,I9))),$L$23) -> 30 | M9: 3 | N9: =IF(D9+E9<>0,((M10-M9)*30)+(L10-L9),0) -> 0 | O9: 0 | P9: 0 | Q9: 0 | R9: =IF(Q9<>0,IF(H9="D",Q9,0),0) -> 0 | S9: =IF(Q9<>0,IF(H9="C",Q9,0),0) -> 0 | U9: décembre | V9: 12 | W9: =IF(H9="D",G9,0) -> 0 | Y9: 0
A10: 2 | F10: 0.00 | G10: 0.00 | H10: 0 | L10: 30 | M10: 3 | N10: 0 | O10: 0 | P10: 0 | Q10: 0 | R10: 0 | S10: 0 | U10: février | V10: 2 | W10: =IF(H10="D",G10,0) -> 0 | Y10: 0
A11: 3 | F11: 0.00 | G11: 0.00 | H11: 0 | L11: 30 | M11: 3 | N11: 0 | O11: 0 | P11: 0 | Q11: 0 | R11: 0 | S11: 0 | U11: janvier | V11: 1 | W11: 0 | Y11: 0
A12: 4 | F12: 0.00 | G12: 0.00 | H12: 0 | L12: 30 | M12: 3 | N12: 0 | O12: 0 | P12: 0 | Q12: 0 | R12: 0 | S12: 0 | U12: juillet | V12: 7 | W12: 0 | Y12: 0
A13: 5 | F13: 0.00 | G13: 0.00 | H13: 0 | L13: 30 | M13: 3 | N13: 0 | O13: 0 | P13: 0 | Q13: 0 | R13: 0 | S13: 0 | U13: juin | V13: 6 | W13: 0 | Y13: 0
A14: 6 | F14: 0.00 | G14: 0.00 | H14: 0 | L14: 30 | M14: 3 | N14: 0 | O14: 0 | P14: 0 | Q14: 0 | R14: 0 | S14: 0 | U14: mai | V14: 5 | W14: 0 | Y14: 0
A15: 7 | F15: 0.00 | G15: 0.00 | H15: 0 | L15: 30 | M15: 3 | N15: 0 | O15: 0 | P15: 0 | Q15: 0 | R15: 0 | S15: 0 | U15: mars | V15: 3 | W15: 0 | Y15: 0
A16: 8 | F16: 0.00 | G16: 0.00 | H16: 0 | L16: 30 | M16: 3 | N16: 0 | O16: 0 | P16: 0 | Q16: 0 | R16: 0 | S16: 0 | U16: novembre | V16: 11 | W16: 0 | Y16: 0
A17: 9 | F17: 0.00 | G17: 0.00 | H17: 0 | L17: 30 | M17: 3 | N17: 0 | O17: 0 | P17: 0 | Q17: 0 | R17: 0 | S17: 0 | U17: octobre | V17: 10 | W17: 0 | Y17: 0
A18: 10 | F18: 0.00 | G18: 0.00 | H18: 0 | L18: 30 | M18: 3 | N18: 0 | O18: 0 | P18: 0 | Q18: 0 | R18: 0 | S18: 0 | U18: septembre | V18: 9 | W18: 0 | Y18: 0
A19: 11 | F19: 0.00 | G19: 0.00 | H19: 0 | L19: 30 | M19: 3 | N19: 0 | O19: 0 | P19: 0 | Q19: 0 | R19: 0 | S19: 0 | W19: 0 | Y19: 0
A20: 12 | F20: 0.00 | G20: 0.00 | H20: 0 | L20: 30 | M20: 3 | N20: 0 | O20: 0 | P20: 0 | Q20: 0 | R20: 0 | S20: 0 | V20: =LOOKUP(O4,U7:U18,V7:V18) -> 3 | W20: 0 | Y20: 0
A21: 13 | F21: 0.00 | G21: 0.00 | H21: 0 | L21: 30 | M21: 3 | N21: 0 | O21: 0 | P21: 0 | Q21: 0 | R21: 0 | S21: 0 | W21: 0 | Y21: 0
A22: 14 | F22: 0.00 | G22: 0.00 | H22: 0 | L22: 30 | M22: 3 | N22: 0 | O22: 0 | P22: 0 | Q22: 0 | R22: 0 | S22: 0 | W22: 0 | Y22: 0
C23: Totaux | D23: =SUM(D8:D22) -> 0.00 | E23: =SUM(E8:E22) -> 0.00 | F23: 0.00 | G23: =IF(D23+E23<>0,ABS(F23)) -> FALSE | H23: =IF(G23<>0,IF(F23>0,"D","C")) -> C | I23: =K4 -> 31 | J23: =IF(I23>0,".") -> . | K23: =V20 -> 3 | L23: 30 | M23: =IF(K23=0,$K$23,K23) -> 3 | N23: =IF(I24=0,K23,IF(K23<>0,IF(K24<K23,K23-12,K23))) -> 3 | O23: =SUM(O8:O22) -> 0 | P23: 0 | Q23: 0 | R23: =SUM(R8:R22) -> 0 | S23: =SUM(S8:S22) -> 0 | Y23: 0
C24: Rés. clôture | D24: =E36 -> 9.00 | E24: =F36 -> 0.00 | F24: 9.00 | G24: =IF(D24+E24<>0,ABS(F24)) -> 9.00 | H24: =IF(SUM(E23:E24)>SUM(D23:D24),"C","D") -> D | I24: =I23 -> 31 | J24: =IF(I24>0,".") -> . | K24: =K23 -> 3 | Y24: 0
B27: Décompte de clôture :
E28: Débit | F28: Crédit | L28: Année : | M28: 1=bissextile
B29: Intérêt créancier | D29: =CONCATENATE(TEXT(O2,"0.000")," %") -> 1.250 % | F29: =S23/(360/O2) -> 0.00 | H29: C | L29: =IF(S4/100=INT(S4/100),IF(S4/400=INT(S4/400),1,0),IF(S4/4=INT(S4/4),1,0)) -> 0
B30: Intérêt débiteur | D30: =CONCATENATE(TEXT(O3,"0.000")," %") -> 7.000 % | E30: =R23/(360/O3) -> 0.00 | H30: D
B31: =IF(E31>0,"Int. débiteur net","Int. créancier net") -> Int. créancier net | E31: =IF(E30>F29,E30-F29,0) -> 0.00 | F31: =IF(F29>E30,F29-E30,0) -> 0.00 | H31: =IF(E31>0,"D","C") -> C
B32: Impôt anticipé | D32: 35% | E32: =F31*0.35 -> 0.00 | H32: D
B33: Frais | E33: 8.00 | H33: D
B34: =IF(C53=1,"Commission 1/4 % sur ",IF(C53=3,"Commission","Commission 1/8 % sur ")) -> Commission 1/4 % sur | D34: =IF(C53=3,"",ROUND(MAX(W9:W22),0)) -> 0 | E34: =IF(MAX(W9:W22)>0,MAX(W9:W22)*C54,0) -> 0.00 | H34: D
B35: Arrondi | E35: =IF(C55=FALSE,0,ABS(E41-E40)) -> 1.00 | H35: D
B36: Résultat clôture | E36: =IF(E43>F43,E43-F43,0) -> 9.00 | F36: =IF(F43>E43,F43-E43,0) -> 0.00 | H36: =IF(E39>0,"D","C") -> D
S37: Total fautes | Y37: =SUM(Y8:Y36) -> 0
C38: Totaux clôture avant arrondi | E38: =SUM(E31:E34) -> 8.00 | F38: =SUM(F31:F34) -> 0.00
C39: résultat clôture avant arrondi | E39: =IF(E38>F38,E38-F38,0) -> 8.00 | F39: =IF(F38>E38,F38-E38,0) -> 0.00
C40: Résultat final avant arrondi | E40: =F23+E39-F39 -> 8.00
C41: Résultat souhaité | E41: =IF(E40>0,INT(E40+1),INT(E40)+1) -> 9.00
C43: Totaux clôture après arrondi | E43: =E38+E35 -> 9.00 | F43: =F38 -> 0.00
C51: avec couleur = Ctrl + a
C52: sans couleur = Ctrl + s
B53: Commission | C53: 1
B54: Com % | C54: =IF(C53=1,0.0025,IF(C53=3,0,0.00125)) -> 0.0025
B55: Arrondi | C55: TRUE
B56: Protection | C56: TRUE
B57: Fautes | C57: FALSE

Sheet Exemple
B2: COMPTE COURANT | F2: Taux créancier : | O2: 1.25 | Q2: 1.25 | R2: %
F3: Taux débiteur : | O3: 7 | Q3: 7 | R3: % | Y3: Nb de fautes
F4: Clôture au : | K4: 31 | O4: mars | S4: 2007 | Y4: par ligne
B5: Date | C5: Libellé | D5: Mouvement | F5: Solde | G5: Solde | H5: D | I5: Val | O5: n | P5: arrondi | Q5: N | R5: Nombres
D6: Débit | E6: Crédit | F6: ! C = - ! | H6: C | I6: j | J6: . | K6: m | P6: solde | R6: Débit | S6: Crédit | W6: solde débiteur pour comm.
G7: =D7-E7 -> 0 | U7: août | V7: 8
A8: 0 | B8: 2005-12-31 | C8: Solde | D8: 3,525.30 | F8: =IF(D8+E8<>0,F7+D8-E8,0) -> 3,525.30 | G8: =IF(D8+E8<>0,ABS(F8),0) -> 3,525.30 | H8: =IF(G8<>0,IF(F8>0,"D","C"),0) -> D | I8: 30 | J8: =IF(I8>0,".","") -> . | K8: 12 | L8: =IF(I8>0,IF(K8<>2,IF(I8=31,30,I8),IF($L$29=1,IF(I8=29,30,I8),IF(I8=28,30,I8))),$L$23) -> 30 | M8: =IF(K8=0,$M$23,K8) -> 12 | N8: =IF(D8+E8<>0,((M9-M8)*30)+(L9-L8),0) -> -349 | O8: =IF(N8<-200,N8+360,N8) -> 11 | P8: =ROUND(G8,0) -> 3525 | Q8: =ROUND(P8*O8/100,0) -> 388 | R8: =IF(Q8<>0,IF(H8="D",Q8,0),0) -> 388 | S8: =IF(Q8<>0,IF(H8="C",Q8,0),0) -> 0 | U8: avril | V8: 4
A9: 1 | B9: 2006-01-10 | C9: Versement | E9: 22,000.00 | F9: -18,474.70 | G9: 18,474.70 | H9: C | I9: 11 | J9: . | K9: 1 | L9: 11 | M9: 1 | N9: 79 | O9: 79 | P9: 18475 | Q9: 14595 | R9: 0 | S9: 14595 | U9: décembre | V9: 12 | W9: =IF(H9="D",G9,0) -> 0 | Y9: 0
A10: 2 | D10: 50,000.00 | F10: 31,525.30 | G10: 31,525.30 | H10: D | L10: 30 | M10: 3 | N10: 0 | O10: 0 | P10: 31525 | Q10: 0 | R10: 0 | S10: 0 | U10: février | V10: 2 | W10: 31525.3 | Y10: 0
A11: 3 | F11: 0.00 | G11: 0.00 | H11: 0 | L11: 30 | M11: 3 | N11: 0 | O11: 0 | P11: 0 | Q11: 0 | R11: 0 | S11: 0 | U11: janvier | V11: 1 | W11: 0 | Y11: 0
A12: 4 | F12: 0.00 | G12: 0.00 | H12: 0 | L12: 30 | M12: 3 | N12: 0 | O12: 0 | P12: 0 | Q12: 0 | R12: 0 | S12: 0 | U12: juillet | V12: 7 | W12: 0 | Y12: 0
A13: 5 | F13: 0.00 | G13: 0.00 | H13: 0 | L13: 30 | M13: 3 | N13: 0 | O13: 0 | P13: 0 | Q13: 0 | R13: 0 | S13: 0 | U13: juin | V13: 6 | W13: 0 | Y13: 0
A14: 6 | F14: 0.00 | G14: 0.00 | H14: 0 | L14: 30 | M14: 3 | N14: 0 | O14: 0 | P14: 0 | Q14: 0 | R14: 0 | S14: 0 | U14: mai | V14: 5 | W14: 0 | Y14: 0
A15: 7 | F15: 0.00 | G15: 0.00 | H15: 0 | L15: 30 | M15: 3 | N15: 0 | O15: 0 | P15: 0 | Q15: 0 | R15: 0 | S15: 0 | U15: mars | V15: 3 | W15: 0 | Y15: 0
A16: 8 | F16: 0.00 | G16: 0.00 | H16: 0 | L16: 30 | M16: 3 | N16: 0 | O16: 0 | P16: 0 | Q16: 0 | R16: 0 | S16: 0 | U16: novembre | V16: 11 | W16: 0 | Y16: 0
A17: 9 | F17: 0.00 | G17: 0.00 | H17: 0 | L17: 30 | M17: 3 | N17: 0 | O17: 0 | P17: 0 | Q17: 0 | R17: 0 | S17: 0 | U17: octobre | V17: 10 | W17: 0 | Y17: 0
A18: 10 | F18: 0.00 | G18: 0.00 | H18: 0 | L18: 30 | M18: 3 | N18: 0 | O18: 0 | P18: 0 | Q18: 0 | R18: 0 | S18: 0 | U18: septembre | V18: 9 | W18: 0 | Y18: 0
A19: 11 | F19: 0.00 | G19: 0.00 | H19: 0 | L19: 30 | M19: 3 | N19: 0 | O19: 0 | P19: 0 | Q19: 0 | R19: 0 | S19: 0 | W19: 0 | Y19: 0
A20: 12 | F20: 0.00 | G20: 0.00 | H20: 0 | L20: 30 | M20: 3 | N20: 0 | O20: 0 | P20: 0 | Q20: 0 | R20: 0 | S20: 0 | V20: =LOOKUP(O4,U7:U18,V7:V18) -> 3 | W20: 0 | Y20: 0
A21: 13 | F21: 0.00 | G21: 0.00 | H21: 0 | L21: 30 | M21: 3 | N21: 0 | O21: 0 | P21: 0 | Q21: 0 | R21: 0 | S21: 0 | W21: 0 | Y21: 0
A22: 14 | F22: 0.00 | G22: 0.00 | H22: 0 | L22: 30 | M22: 3 | N22: 0 | O22: 0 | P22: 0 | Q22: 0 | R22: 0 | S22: 0 | W22: 0 | Y22: 0
C23: Totaux | D23: =SUM(D8:D22) -> 53,525.30 | E23: =SUM(E8:E22) -> 22,000.00 | F23: 31,525.30 | G23: =IF(D23+E23<>0,ABS(F23)) -> 31,525.30 | H23: =IF(G23<>0,IF(F23>0,"D","C")) -> D | I23: =K4 -> 31 | J23: =IF(I23>0,".") -> . | K23: =V20 -> 3 | L23: 30 | M23: =IF(K23=0,$K$23,K23) -> 3 | N23: =IF(I24=0,K23,IF(K23<>0,IF(K24<K23,K23-12,K23))) -> 3 | O23: =SUM(O8:O22) -> 90 | P23: 31525 | Q23: 28373 | R23: =SUM(R8:R22) -> 388 | S23: =SUM(S8:S22) -> 14595 | Y23: 0
C24: Rés. clôture | D24: =E36 -> 19.70 | E24: =F36 -> 0.00 | F24: 31,545.00 | G24: =IF(D24+E24<>0,ABS(F24)) -> 31,545.00 | H24: =IF(SUM(E23:E24)>SUM(D23:D24),"C","D") -> D | I24: =I23 -> 31 | J24: =IF(I24>0,".") -> . | K24: =K23 -> 3 | Y24: 0
B27: Décompte de clôture : | S27: zone à remplir
E28: Débit | F28: Crédit | L28: Année : | M28: 1=bissextile
B29: Intérêt créancier | D29: =CONCATENATE(TEXT(O2,"0.000")," %") -> 1.250 % | F29: =S23/(360/O2) -> 50.68 | H29: C | L29: =IF(S4/100=INT(S4/100),IF(S4/400=INT(S4/400),1,0),IF(S4/4=INT(S4/4),1,0)) -> 0 | S29: zone protégée
B30: Intérêt débiteur | D30: =CONCATENATE(TEXT(O3,"0.000")," %") -> 7.000 % | E30: =R23/(360/O3) -> 7.54 | H30: D
B31: =IF(E31>0,"Int. débiteur net","Int. créancier net") -> Int. créancier net | E31: =IF(E30>F29,E30-F29,0) -> 0.00 | F31: =IF(F29>E30,F29-E30,0) -> 43.13 | H31: =IF(E31>0,"D","C") -> C
B32: Impôt anticipé | D32: 35% | E32: =F31*0.35 -> 15.10 | H32: D
B33: Frais | E33: 8.00 | H33: D
B34: =IF(C53=1,"Commission 1/4 % sur ",IF(C53=3,"Commission","Commission 1/8 % sur ")) -> Commission 1/8 % sur | D34: =IF(C53=3,"",ROUND(MAX(W9:W22),0)) -> 31525 | E34: =IF(MAX(W9:W22)>0,MAX(W9:W22)*C54,0) -> 39.41 | H34: D
B35: Arrondi | E35: =IF(C55=FALSE,0,ABS(E41-E40)) -> 0.33 | H35: D
B36: Résultat clôture | E36: =IF(E43>F43,E43-F43,0) -> 19.70 | F36: =IF(F43>E43,F43-E43,0) -> 0.00 | H36: =IF(E39>0,"D","C") -> D
S37: Total fautes | Y37: =SUM(Y8:Y36) -> 0
C38: Totaux clôture avant arrondi | E38: =SUM(E31:E34) -> 62.50 | F38: =SUM(F31:F34) -> 43.13
C39: résultat clôture avant arrondi | E39: =IF(E38>F38,E38-F38,0) -> 19.37 | F39: =IF(F38>E38,F38-E38,0) -> 0.00
C40: Résultat final avant arrondi | E40: =F23+E39-F39 -> 31,544.67
C41: Résultat souhaité | E41: =IF(E40>0,INT(E40+1),INT(E40)+1) -> 31,545.00
C43: Totaux clôture après arrondi | E43: =E38+E35 -> 62.83 | F43: =F38 -> 43.13
C51: avec couleur = Ctrl + a
C52: sans couleur = Ctrl + s
B53: Commission | C53: 2
B54: Com % | C54: =IF(C53=1,0.0025,IF(C53=3,0,0.00125)) -> 0.00125
B55: Arrondi | C55: TRUE
B56: Protection | C56: TRUE
B57: Fautes | C57: FALSE
